bitfinex/quotes_ETHUSD_20241104
["timestamp","ask_amount","ask_price","bid_price","bid_amount"]
[1730750614409,7.02258761,2431.7,2431.6,0.16623926]
[1730750616334,6.26198761,2431.7,2431.6,0.16623926]
[1730750616844,6.26198761,2431.7,2431.2,4.11317]
[1730750616845,2.14963761,2431.7,2431.2,4.11317]
[1730750617018,6.26206761,2431.7,2431.3,0.16611418]
[1730750617219,4.11275,2431.5,2431.1,1.0749089]
[1730750617419,4.11294,2431.4,2431.2,0.16612307]
[1730750617749,4.11294,2431.4,2431.1,0.8091]
[1730750617908,4.11294,2431.4,2431.2,0.16611336]
[1730750617909,4.11292,2431.4,2431.2,0.16611336]
[1730750618115,4.11292,2431.4,2431.1,0.8091]
[1730750618315,4.11292,2431.4,2431.2,0.16611788]
[1730750618611,4.11292,2431.4,2431.1,0.8091]
[1730750618848,0.13542199,2431.3,2431.2,0.16609355]
[1730750619050,0.13542199,2431.3,2431.1,0.8091]
[1730750620609,0.13542199,2431.3,2431.2,0.16607844]
[1730750620816,4.1127,2431.5,2431.2,0.16607844]
[1730750621039,4.1127,2431.5,2431.1,4.92245]
[1730750621362,4.11262,2431.6,2431.2,0.16607975]
[1730750621658,4.11262,2431.6,2431.2,4.11319]
[1730750622026,4.11262,2431.6,2431.1,4.92244]
[1730750622027,0.13542199,2431.5,2431.1,4.92244]
[1730750622211,0.13542199,2431.5,2431.2,0.16608222]
[1730750622411,0.13542199,2431.5,2431.1,4.92244]
[1730750622713,0.13542199,2431.5,2431.2,0.16608462]
[1730750622939,0.13542199,2431.5,2431.3,0.16608462]
[1730750623953,4.11237,2431.7,2431.3,0.16608462]
[1730750624165,0.13539796,2431.4,2431.3,0.16608462]
[1730750624369,0.13539796,2431.4,2431.3,0.33219381]
[1730750624658,4.11233,2431.8,2431.3,5.23041381]
[1730750624913,4.11233,2431.8,2431.4,0.16612164]
[1730750625072,4.11233,2431.8,2431.5,0.16612164]
[1730750625223,4.11233,2431.8,2431.3,5.06430462]
[1730750625570,4.11227,2431.8,2431.4,0.16610449]
[1730750625765,4.11227,2431.8,2431.5,0.16610449]
[1730750625969,4.11227,2431.8,2431.3,5.06430462]
[1730750626130,4.11249,2431.7,2431.4,0.16611392]
[1730750626326,4.11249,2431.7,2431.3,0.95128462]
[1730750626667,4.11249,2431.7,2431.4,0.16613591]
[1730750626876,4.11249,2431.7,2431.5,0.16613591]
[1730750627022,4.11249,2431.7,2431.3,0.7852]
[1730750627232,4.11249,2431.7,2431.4,0.16613583]
[1730750627528,4.11249,2431.7,2431.5,0.16613583]
[1730750627729,4.11249,2431.7,2431.3,0.7852]
[1730750627929,4.11249,2431.7,2431.4,0.16616535]
[1730750628174,4.11249,2431.7,2431.5,0.16616535]
[1730750628328,4.11249,2431.7,2431.3,4.89818]
[1730750628538,4.11249,2431.7,2431.4,0.43211942]
[1730750628747,4.11249,2431.7,2431.5,0.16618973]
[1730750629058,4.11249,2431.7,2431.4,0.26592451]
[1730750629357,4.11222,2431.8,2431.5,0.16618813]
[1730750629552,4.11222,2431.8,2431.6,0.16618813]
[1730750629760,4.11222,2431.8,2431.3,4.89818]
[1730750629960,4.11222,2431.8,2431.4,0.1662243]
[1730750630159,4.11222,2431.8,2431.5,0.1662243]
[1730750630359,4.11222,2431.8,2431.3,4.89818]
[1730750630572,4.11235,2431.7,2431.4,0.43225537]
[1730750630769,4.11235,2431.7,2431.5,0.16623938]
[1730750630975,4.11235,2431.7,2431.3,4.89818]
[1730750631177,4.11201,2431.9,2431.4,4.54501643]
[1730750631359,4.11209,2431.9,2431.6,0.7668]
[1730750631559,4.11209,2431.9,2431.7,0.16625073]
[1730750631788,4.11209,2431.9,2431.8,0.16625073]
[1730750632760,4.11178,2432.1,2431.8,0.16625073]
[1730750632958,4.11175,2432.1,2431.9,0.16635237]
[1730750633284,4.11175,2432.1,2431.7,0.2661972]
[1730750633474,4.11175,2432.1,2431.8,0.16639582]
[1730750633785,4.11175,2432.1,2431.9,0.16639582]
[1730750633986,0.1355254,2432.0,2431.6,7.96140203]
[1730750634187,0.1355254,2432.0,2431.7,0.16639659]
[1730750634345,0.1355254,2432.0,2431.8,0.16639659]
[1730750634683,0.1355254,2432.0,2431.9,0.16639659]
[1730750635989,4.11158,2432.2,2431.9,0.16639659]
[1730750636215,13.23138501,2432.3,2431.9,0.833]
[1730750636216,0.13553741,2432.0,2431.9,0.833]
[1730750636510,6.26007118,2432.5,2431.9,0.833]
[1730750636511,1.71994501,2432.5,2432.0,4.11173]
[1730750636661,5.83102501,2432.5,2432.1,0.16638351]
[1730750636860,5.83102501,2432.5,2432.2,0.16638356]
[1730750637202,5.83102501,2432.5,2432.0,4.11173]
[1730750637203,4.11117,2432.4,2432.0,4.11173]
[1730750637360,4.11117,2432.4,2432.1,0.16636462]
[1730750637560,4.11117,2432.4,2432.0,4.11173]
[1730750637805,4.11117,2432.4,2431.9,0.833]
[1730750638012,4.11142,2432.3,2432.0,0.43242959]
[1730750638301,4.11142,2432.3,2432.1,0.16630847]
[1730750638458,4.11142,2432.3,2431.9,3.833]
[1730750638658,4.11142,2432.3,2432.0,0.16626575]
[1730750638892,4.11142,2432.3,2432.1,0.16626575]
[1730750639106,4.11142,2432.3,2431.9,3.833]
[1730750639259,4.11142,2432.3,2432.0,0.16626501]
[1730750639469,4.1115,2432.2,2432.1,0.16626501]
[1730750639803,4.11142,2432.3,2431.9,0.833]
[1730750639962,4.11151,2432.2,2432.0,0.16622453]
[1730750640289,4.11151,2432.2,2431.9,0.833]
[1730750640464,4.11151,2432.2,2432.0,0.16622478]
[1730750640666,4.11151,2432.2,2432.1,0.16622478]
[1730750640968,4.94051,2432.2,2431.8,3.0]
[1730750641195,4.94051,2432.2,2431.9,0.43219307]
[1730750641395,4.94051,2432.2,2432.0,0.16621802]
[1730750641709,4.94051,2432.2,2431.9,0.26598487]
[1730750641908,4.94051,2432.2,2432.0,0.16620279]
[1730750642076,0.829,2432.2,2431.9,0.26595203]
[1730750642265,0.829,2432.2,2432.0,0.1662006]
[1730750642603,0.829,2432.2,2431.8,7.11217]
[1730750642777,0.829,2432.2,2431.9,0.16621241]
[1730750642976,0.829,2432.2,2432.0,0.16621241]
[1730750643197,0.829,2432.2,2431.7,3.772]
[1730750643405,4.9405,2432.2,2431.8,0.43219286]
[1730750643717,4.9405,2432.2,2431.7,7.88427]
[1730750643872,4.9405,2432.2,2431.9,0.16622185]
[1730750644077,4.9405,2432.2,2432.0,0.16622185]
[1730750644408,4.9405,2432.2,2431.8,0.26597363]
[1730750644717,4.11184,2432.0,2431.6,3.0]
[1730750644875,4.11201,2431.9,2431.7,0.16624823]
[1730750645079,4.11186,2432.0,2431.8,0.16624823]
[1730750645286,4.11186,2432.0,2431.9,0.16624823]
[1730750645471,5.12484515,2432.0,2431.9,0.16624823]
[1730750646224,4.11259,2431.6,2431.1,1.08993215]
[1730750646516,0.8316,2431.9,2431.1,1.08993215]
[1730750646517,4.11292,2431.4,2431.2,0.76490172]
[1730750646673,4.11292,2431.4,2431.3,0.43230725]
[1730750646870,4.11292,2431.4,2431.3,0.16626193]
[1730750647284,4.11311,2431.3,2430.9,8.1528]
[1730750647512,4.11311,2431.3,2430.7,4.11387]
[1730750647513,4.11311,2431.3,2431.0,0.76495381]
[1730750647704,4.11311,2431.3,2431.1,0.43233954]
[1730750647879,4.11311,2431.3,2431.2,0.43233954]
[1730750649017,4.24871047,2431.3,2431.2,0.43232725]
[1730750650116,4.24871047,2431.3,2431.2,0.16627435]
[1730750650481,4.24871047,2431.3,2431.2,0.43231381]
[1730750651138,4.24871047,2431.3,2431.2,0.43229871]
[1730750651690,4.24871047,2431.3,2431.2,0.16625865]
[1730750651893,4.24871047,2431.3,2431.2,0.43228932]
[1730750652122,5.25197892,2431.3,2431.2,0.16625865]
[1730750652421,4.88316,2431.1,2430.8,0.33258286]
[1730750652625,4.88316,2431.1,2430.9,0.16620886]
[1730750652930,8.9966,2431.1,2431.0,0.16620886]
[1730750653277,9.99658685,2431.1,2431.0,0.16620886]
[1730750653522,4.11355,2431.0,2430.8,0.26588892]
[1730750653691,4.88316,2431.1,2430.9,0.16615099]
[1730750653895,4.88316,2431.1,2431.0,0.16615099]
[1730750654982,8.22648,2431.2,2431.0,0.16615099]
[1730750655185,4.11336,2431.1,2430.7,0.8128]
[1730750655384,4.11336,2431.1,2430.8,0.43182615]
[1730750655689,4.11336,2431.1,2430.9,0.1660769]
[1730750655910,4.11336,2431.1,2431.0,0.1660769]
[1730750656626,4.11336,2431.1,2431.0,0.16604331]
[1730750657643,4.11336,2431.1,2431.0,0.16600775]
[1730750657986,4.11336,2431.1,2430.8,0.2656238]
[1730750658214,4.11336,2431.1,2430.7,0.8128]
[1730750658523,4.11336,2431.1,2430.8,0.43163419]
[1730750658702,4.11336,2431.1,2430.9,0.16597557]
[1730750658888,4.11336,2431.1,2431.0,0.16597557]
[1730750659308,4.11336,2431.1,2430.7,0.8128]
[1730750659515,4.11336,2431.1,2430.8,0.16596229]
[1730750659696,4.11336,2431.1,2430.9,0.16596229]
[1730750659913,4.11336,2431.1,2430.8,0.26556533]
[1730750660099,4.11336,2431.1,2430.9,0.16596293]
[1730750660301,4.11336,2431.1,2430.8,0.26556533]
[1730750660503,4.11336,2431.1,2430.9,0.16595755]
[1730750660705,4.11336,2431.1,2430.7,0.8128]
[1730750660906,4.11336,2431.1,2430.8,0.16594603]
[1730750661090,4.11336,2431.1,2430.9,0.16594603]
[1730750661290,4.11336,2431.1,2430.7,0.8128]
[1730750661492,4.11336,2431.1,2430.8,0.16592419]
[1730750661693,4.11336,2431.1,2430.9,0.16592419]
[1730750661993,4.11336,2431.1,2430.7,1.07830505]
[1730750662199,4.11336,2431.1,2430.7,0.8128]
[1730750662423,4.11336,2431.1,2430.8,0.16592192]
[1730750662638,4.11336,2431.1,2430.9,0.16592192]
[1730750662916,4.11336,2431.1,2430.7,1.07830127]
[1730750663137,4.11336,2431.1,2430.8,0.16591273]
[1730750663346,4.11336,2431.1,2430.9,0.16591273]
[1730750663550,4.11336,2431.1,2430.7,1.07830127]
[1730750663739,4.11336,2431.1,2430.8,0.16591133]
[1730750664053,0.13511985,2431.0,2430.9,0.16591133]
[1730750664551,0.13511985,2431.0,2430.7,1.07830127]
[1730750664751,0.13511985,2431.0,2430.8,0.165904]
[1730750665047,0.13511985,2431.0,2430.7,1.07830127]
[1730750665048,0.13511985,2431.0,2430.9,0.165904]
[1730750665562,4.24864985,2431.0,2430.9,0.165904]
[1730750665860,4.24864985,2431.0,2430.7,0.8128]
[1730750666026,4.24864985,2431.0,2430.8,0.16590783]
[1730750666354,0.13511985,2431.0,2430.7,0.8128]
[1730750666659,0.13511985,2431.0,2430.8,0.16592848]
[1730750666817,0.13511985,2431.0,2430.7,1.07830127]
[1730750667159,0.13511985,2431.0,2430.8,0.16591996]
[1730750667342,0.13511985,2431.0,2430.9,0.16596789]
[1730750669023,0.13511985,2431.0,2430.7,0.8128]
[1730750669224,0.13511985,2431.0,2430.8,0.16600759]
[1730750669445,4.24880985,2431.0,2430.9,0.16600759]
[1730750669646,5.16383084,2431.0,2430.6,0.2657343]
[1730750669961,4.11391,2430.8,2430.7,0.43181526]
[1730750670483,4.24902985,2430.8,2430.7,0.43181526]
[1730750671283,4.24902985,2430.8,2430.7,0.16608096]
[1730750671638,4.24902985,2430.8,2430.7,0.43193478]
[1730750672459,4.24902985,2430.8,2430.4,0.7544]
[1730750672657,4.24902985,2430.8,2430.5,0.76463322]
[1730750672858,4.24902985,2430.8,2430.4,0.7544]
[1730750673081,4.24902985,2430.8,2430.6,0.1662098]
[1730750673272,4.24902985,2430.8,2430.7,0.43224575]
[1730750675352,0.13511985,2430.8,2430.7,0.43284696]
[1730750676256,0.13511985,2430.8,2430.4,0.7544]
[1730750676504,4.24898985,2430.8,2430.7,0.16655243]
[1730750676799,4.24898985,2430.8,2430.7,0.76623318]
[1730750678774,0.13511985,2430.8,2430.7,0.76623318]
[1730750679683,0.13511985,2430.8,2430.4,0.7544]
[1730750679888,4.24898985,2430.8,2430.5,0.76639378]
[1730750680082,4.24898985,2430.8,2430.6,0.76639378]
[1730750680285,4.24898985,2430.8,2430.7,0.76639378]
[1730750680689,0.13511985,2430.8,2430.7,0.76639378]
[1730750681010,4.24898985,2430.8,2430.7,0.76639378]
[1730750681211,4.24898985,2430.8,2430.7,0.43315338]
[1730750681372,4.24898985,2430.8,2430.7,0.7664451]
[1730750682014,5.02608985,2430.8,2430.7,0.7664451]
[1730750682216,5.94007284,2430.8,2430.7,0.43315338]
[1730750683722,5.94007284,2430.8,2430.7,0.16658734]
[1730750684215,5.94007284,2430.8,2430.7,0.43318326]
[1730750684375,5.94007284,2430.8,2430.7,0.16658734]
[1730750686829,4.11443,2430.5,2430.1,3.7889]
[1730750687025,4.11443,2430.5,2430.2,0.76620526]
[1730750687186,4.11443,2430.5,2430.3,0.76620526]
[1730750687386,4.11443,2430.5,2430.4,0.43304448]
[1730750687597,7.28207906,2430.5,2430.4,0.43304448]
[1730750687811,7.28207906,2430.5,2430.4,0.16654428]
[1730750688281,7.28207906,2430.5,2430.0,0.465095]
[1730750688282,4.11483,2430.3,2430.1,0.26636964]
[1730750688484,4.11483,2430.3,2430.2,0.16646798]
[1730750691314,4.11483,2430.3,2430.2,0.16633482]
[1730750692437,4.11483,2430.3,2430.0,0.465095]
[1730750692652,4.11483,2430.3,2430.1,0.16630127]
[1730750692861,4.11483,2430.3,2430.0,0.465095]
[1730750693157,4.11483,2430.3,2430.1,0.16629989]
[1730750693359,4.11483,2430.3,2430.0,0.465095]
[1730750693665,4.75902894,2430.3,2430.1,0.16627922]
[1730750693956,0.13474114,2430.2,2430.0,0.465095]
[1730750694120,4.75902894,2430.3,2430.1,0.16766229]
[1730750694322,0.13474114,2430.1,2430.0,0.465095]
[1730750694522,4.75902894,2430.3,2430.0,0.63273918]
[1730750694753,4.75902894,2430.3,2430.1,0.16764418]
[1730750694949,4.75902894,2430.3,2430.0,0.465095]
[1730750695259,4.75902894,2430.3,2430.1,0.16764362]
[1730750695260,4.11488,2430.2,2430.1,0.16764362]
[1730750695567,4.11488,2430.2,2430.0,0.465095]
[1730750695862,4.11488,2430.2,2430.1,0.16763402]
[1730750696234,4.11488,2430.2,2430.0,0.465095]
[1730750696950,4.11505,2430.1,2430.0,0.465095]
[1730750697624,4.91745,2430.1,2430.0,0.465095]
[1730750697968,4.91745,2430.1,2430.0,0.63269744]
[1730750698420,4.91745,2430.1,2430.0,0.63269335]
[1730750700876,4.91745,2430.1,2430.0,0.465095]
[1730750701072,4.91745,2430.1,2430.0,0.63270618]
[1730750702682,4.11505,2430.1,2430.0,0.63270618]
[1730750703701,4.11505,2430.1,2430.0,0.465095]
[1730750704109,4.11505,2430.1,2430.0,0.63271564]
[1730750705225,5.08085389,2430.1,2430.0,0.63271564]
[1730750705423,5.08085389,2430.1,2430.0,0.465095]
[1730750705424,6.61834195,2430.1,2430.0,0.465095]
[1730750705792,7.42244195,2430.1,2430.0,0.465095]
[1730750707900,7.42244195,2430.1,2430.0,0.2]
[1730750708989,7.5568777,2430.1,2430.0,0.2]
[1730750713219,5.05358575,2430.1,2430.0,0.2]
[1730750713571,0.13443575,2430.1,2430.0,1.0075]
[1730750713752,0.64419894,2430.3,2430.0,1.17520481]
[1730750713753,4.75891894,2430.3,2430.0,1.17520481]
[1730750713922,0.13437559,2430.1,2430.0,1.0075]
[1730750714122,0.13437559,2430.1,2430.0,1.17657903]
[1730750714322,0.13437559,2430.1,2430.0,1.0075]
[1730750714563,0.13437559,2430.1,2430.0,1.1766229]
[1730750714768,6.2762601,2430.1,2430.0,0.3691229]
[1730750714937,6.2762601,2430.1,2430.0,0.2]
[1730750715198,7.1062601,2430.1,2430.0,0.2]
[1730750715369,5.56877204,2430.1,2430.0,0.2]
[1730750725150,7.28871705,2430.1,2430.0,0.2]
[1730750726849,5.56877204,2430.1,2430.0,0.2]
[1730750727186,10.28871705,2430.1,2430.0,0.2]
[1730750727980,4.1159,2429.6,2429.5,0.16929148]
[1730750728152,4.11658,2429.2,2429.1,0.7539]
[1730750728358,4.11658,2429.2,2429.1,1.19415104]
[1730750728591,4.11653,2429.3,2429.1,0.92321734]
[1730750728744,4.11653,2429.3,2429.2,0.16931734]
[1730750729857,4.11653,2429.3,2429.2,0.16925536]
[1730750731088,4.11653,2429.3,2429.2,0.16922216]
[1730750732810,4.939808,2429.3,2429.2,0.16922216]
[1730750733522,4.11631,2429.4,2429.2,0.16922216]
[1730750733824,4.11631,2429.4,2429.3,0.16922216]
[1730750735502,4.11602,2429.6,2429.3,0.16922216]
[1730750735836,4.1161,2429.5,2429.4,0.16924072]
[1730750736050,4.11592,2429.6,2429.4,0.99263858]
[1730750736194,4.11592,2429.6,2429.5,0.16924257]
[1730750739044,4.32245985,2429.6,2429.5,0.16924257]
[1730750739342,4.32245985,2429.6,2429.4,0.8234]
[1730750739495,4.11607,2429.5,2429.4,0.8234]
[1730750739695,4.11607,2429.5,2429.4,0.99265712]
[1730750740147,4.32260985,2429.5,2429.4,0.99265712]
[1730750740518,4.76707767,2429.5,2429.4,0.16925712]
[1730750741443,4.32260985,2429.5,2429.4,0.16925712]
[1730750743340,4.32260985,2429.5,2429.2,0.8179]
[1730750743640,4.11624,2429.4,2429.3,0.16927501]
[1730750744041,4.32277985,2429.4,2429.3,0.16927501]
[1730750744242,4.32277985,2429.4,2429.3,0.44026977]
[1730750744818,4.32277985,2429.4,2429.3,0.44034581]
[1730750745296,0.20653985,2429.4,2429.3,0.44034581]
[1730750746149,4.11594,2429.6,2429.3,1.21484581]
[1730750746317,0.20657293,2429.4,2429.3,0.7745]
[1730750746511,4.11594,2429.6,2429.3,1.21486808]
[1730750746705,0.20657293,2429.4,2429.3,0.7745]
[1730750746915,4.11594,2429.6,2429.3,1.21485874]
[1730750747106,0.20657293,2429.4,2429.3,0.7745]
[1730750747620,4.11576,2429.7,2429.3,0.7745]
[1730750747621,4.11576,2429.7,2429.3,0.4404018]
[1730750747838,4.1159,2429.6,2429.5,0.7501]
[1730750748141,4.1159,2429.6,2429.5,0.91947532]
[1730750748649,4.11577,2429.7,2429.5,0.91947532]
[1730750748817,4.11577,2429.7,2429.6,0.16937532]
[1730750753971,4.76013369,2429.7,2429.6,0.16937532]
[1730750754137,4.96670662,2429.7,2429.6,0.16937532]
[1730750754648,4.96670662,2429.7,2429.6,0.1694674]
[1730750755239,6.04685365,2429.7,2429.6,0.1694674]
[1730750757479,6.04685365,2429.7,2429.5,0.7501]
[1730750757662,6.04685365,2429.7,2429.6,0.16946495]
[1730750758892,4.1159,2429.6,2429.5,0.7501]
[1730750759243,4.32250003,2429.6,2429.5,0.7501]
[1730750762396,0.20660003,2429.6,2429.2,3.0]
[1730750762600,4.32257003,2429.6,2429.3,0.8119]
[1730750763358,4.32257003,2429.6,2429.3,1.1205018]
[1730750763653,4.32257003,2429.6,2429.3,0.8119]
[1730750764057,7.17098948,2429.6,2429.3,0.8119]
[1730750764296,3.05501948,2429.6,2428.9,1.66402172]
[1730750764468,4.11641,2429.3,2428.9,0.8028]
[1730750764800,4.11641,2429.3,2429.0,0.3086739]
[1730750765096,4.32319003,2429.2,2428.9,0.8028]
[1730750765305,0.20660003,2429.2,2429.0,0.30864579]
[1730750765483,0.20660003,2429.2,2429.0,0.30864524]
[1730750765685,4.11647,2429.3,2428.9,0.8028]
[1730750766003,0.20660003,2429.1,2429.0,0.44081955]
[1730750766163,4.11647,2429.3,2429.0,0.44081955]
[1730750766495,0.20660003,2429.2,2429.1,0.16953599]
[1730750766697,0.20660003,2429.2,2429.1,0.44081293]
[1730750766998,4.11647,2429.3,2429.1,0.16953599]
[1730750767201,0.20660003,2429.2,2428.9,0.8028]
[1730750767398,0.20660003,2429.2,2429.0,0.44079709]
[1730750767698,0.20660003,2429.1,2428.9,0.8028]
[1730750768066,4.11647,2429.3,2429.0,0.44065788]
[1730750768396,4.98677142,2429.3,2429.1,0.16947381]
[1730750768561,4.98677142,2429.3,2429.2,0.16947381]
[1730750768761,4.11675,2429.1,2428.8,0.3086499]
[1730750768962,4.11675,2429.1,2428.9,0.44055752]
[1730750769194,4.11675,2429.1,2429.0,0.16943521]
[1730750771164,8.23329,2429.2,2429.0,0.16943521]
[1730750771365,4.1166,2429.2,2428.8,0.57952302]
[1730750771633,8.2333,2429.2,2428.7,0.7928]
[1730750771769,8.2333,2429.2,2428.8,0.44028956]
[1730750772108,8.2333,2429.2,2428.9,0.16933251]
[1730750772271,8.2333,2429.2,2429.0,0.16933251]
[1730750772468,4.11675,2429.1,2428.7,0.7928]
[1730750772681,4.11675,2429.1,2428.8,0.74876525]
[1730750772890,4.11675,2429.1,2428.9,0.1693069]
[1730750773088,4.11675,2429.1,2429.0,0.1693069]
[1730750773262,4.11675,2429.1,2429.0,0.16928583]
[1730750773668,5.02711514,2429.1,2429.0,0.16928583]
[1730750773863,5.02711514,2429.1,2428.8,0.57942757]
[1730750773864,4.11698,2429.0,2428.8,0.57942757]
[1730750774195,4.11698,2429.0,2428.9,0.16928984]
[1730750775213,4.11698,2429.0,2428.7,0.7928]
[1730750775514,4.11709,2428.9,2428.7,0.30847754]
[1730750775667,4.11742,2428.8,2428.6,0.64037964]
[1730750775866,4.11742,2428.8,2428.7,0.1692469]
[1730750776065,4.11742,2428.8,2428.7,0.16925261]
[1730750776810,4.11742,2428.8,2428.7,0.16920687]
[1730750778794,4.11742,2428.8,2428.6,0.0610983]
[1730750778963,4.11742,2428.7,2428.6,0.0610983]
[1730750779181,4.11742,2428.7,2428.6,0.23026315]
[1730750779383,4.11742,2428.8,2428.6,0.23026315]
[1730750779620,4.11742,2428.8,2428.6,0.0610983]
[1730750780182,8.23482,2428.8,2428.6,0.0610983]
[1730750780392,4.1174,2428.8,2428.6,0.0610983]
[1730750780722,8.23481,2428.8,2428.6,0.0610983]
[1730750780883,4.89152,2428.7,2428.6,0.0610983]
[1730750784010,5.09787023,2428.7,2428.6,0.0610983]
[1730750786759,0.20635023,2428.7,2428.6,0.0610983]
[1730750786956,0.20635023,2428.7,2428.6,0.23030126]
[1730750787127,4.11742,2428.7,2428.6,0.23030126]
[1730750787454,4.32377023,2428.7,2428.6,0.23030126]
[1730750788335,5.16788625,2428.7,2428.6,0.23030126]
[1730750788620,5.16788625,2428.7,2428.6,0.0610983]
[1730750790261,5.16788625,2428.7,2428.6,0.23031492]
[1730750790527,5.16788625,2428.7,2428.6,0.0610983]
[1730750790679,0.20635023,2428.7,2428.6,0.23031929]
[1730750790838,4.11739,2428.8,2428.6,0.23031929]
[1730750791039,4.323713,2428.7,2428.6,0.0610983]
[1730750791382,4.323713,2428.7,2428.6,0.23031918]
[1730750791876,0.206293,2428.7,2428.6,0.23031918]
[1730750792033,4.11728,2428.8,2428.6,0.23031918]
[1730750792235,4.11742,2428.7,2428.6,0.0610983]
[1730750792578,0.206293,2428.7,2428.6,0.23033214]
[1730750792935,4.11727,2428.8,2428.6,0.23033214]
[1730750793133,0.206293,2428.7,2428.6,0.0610983]
[1730750793346,0.206293,2428.7,2428.6,0.23035691]
[1730750793586,4.11727,2428.8,2428.6,0.23035691]
[1730750793771,0.206293,2428.7,2428.6,0.0610983]
[1730750793935,0.206293,2428.7,2428.6,0.23035379]
[1730750794478,4.11727,2428.8,2428.6,0.23035379]
[1730750794682,0.206293,2428.7,2428.6,0.0610983]
[1730750794890,0.206293,2428.7,2428.6,0.23036153]
[1730750795058,5.023242,2428.8,2428.6,0.23036153]
[1730750795242,4.323713,2428.7,2428.6,0.0610983]
[1730750795449,4.323713,2428.7,2428.6,0.23038023]
[1730750795746,5.2584025,2428.7,2428.6,0.23038023]
[1730750795948,0.206293,2428.7,2428.6,0.23038023]
[1730750796382,4.11729,2428.8,2428.6,0.23038023]
[1730750796592,4.32357452,2428.7,2428.6,0.0610983]
[1730750796948,4.32357452,2428.7,2428.6,0.39967544]
[1730750803408,0.20615452,2428.7,2428.6,0.39967544]
[1730750803610,4.32357452,2428.7,2428.6,0.39967544]
[1730750803813,4.11742,2428.7,2428.6,0.23039305]
[1730750804026,4.32357152,2428.7,2428.6,0.39984898]
[1730750805010,5.16765667,2428.7,2428.6,0.23055423]
[1730750807369,5.16765667,2428.7,2428.6,0.0610983]
[1730750807599,5.16765667,2428.7,2428.6,0.23063891]
[1730750807809,5.16765667,2428.7,2428.6,0.0610983]
[1730750808080,5.16765667,2428.7,2428.6,0.23063869]
[1730750810522,5.92655667,2428.7,2428.6,0.23063869]
[1730750810819,7.64573034,2428.7,2428.6,0.0610983]
[1730750810978,8.07393311,2428.7,2428.6,0.0610983]
[1730750814130,8.71861781,2428.7,2428.6,0.0610983]
[1730750817636,8.71829941,2428.7,2428.6,0.0610983]
[1730750818046,6.57124137,2428.7,2428.6,0.0610983]
[1730750818450,8.71829941,2428.7,2428.6,0.0610983]
[1730750821202,6.57624137,2428.7,2428.6,0.0610983]
[1730750823001,9.57624137,2428.7,2428.6,0.0610983]
[1730750825426,11.7228236,2428.7,2428.6,0.0610983]
[1730750825625,11.29348008,2428.7,2428.6,0.0610983]
[1730750825865,9.57624137,2428.7,2428.6,0.0610983]
[1730750826037,5.81234137,2428.7,2428.6,0.0610983]
[1730750826240,7.52965433,2428.7,2428.6,0.0610983]
[1730750826861,7.9589236,2428.7,2428.6,0.0610983]
[1730750827065,5.81234137,2428.7,2428.6,0.0610983]
[1730750828767,6.88492424,2428.7,2428.6,0.0610983]
[1730750830061,6.04083909,2428.7,2428.6,0.0610983]
[1730750830262,4.32357152,2428.7,2428.6,0.0610983]
[1730750830487,0.20615152,2428.7,2428.6,0.0610983]
[1730750830688,1.71726757,2429.0,2428.6,0.8410983]
[1730750830895,0.20584435,2428.9,2428.7,0.78]
[1730750831255,4.11661,2429.2,2428.7,5.65639065]
[1730750831554,0.20584435,2429.1,2428.9,0.7758]
[1730750831975,8.23307,2429.3,2428.9,0.7758]
[1730750832189,0.20584435,2429.0,2428.9,0.7758]
[1730750832392,4.11665,2429.2,2428.9,0.7758]
[1730750832583,0.20584435,2429.0,2428.9,0.7758]
[1730750832780,4.11665,2429.2,2428.9,0.7758]
[1730750832961,0.20584435,2429.0,2428.9,0.7758]
[1730750833169,4.11678,2429.1,2428.9,0.7758]
[1730750833457,0.20584435,2429.0,2428.9,0.7758]
[1730750834586,4.11651,2429.3,2428.9,0.7758]
[1730750834788,0.20584435,2429.0,2428.9,0.7758]
[1730750834961,8.23301,2429.3,2428.9,0.7758]
[1730750835175,0.20584435,2429.0,2428.9,0.7758]
[1730750835357,8.23301,2429.3,2428.9,0.7758]
[1730750835555,0.20584435,2429.0,2428.9,7.19941992]
[1730750835807,4.11583,2429.7,2429.1,4.1166]
[1730750836027,5.83257757,2430.0,2429.3,0.7516]
[1730750836230,4.11573,2429.7,2429.3,0.7516]
[1730750836411,8.23154,2429.7,2429.3,0.7516]
[1730750836740,4.11573,2429.7,2429.3,0.7516]
[1730750837713,4.11597,2429.6,2429.3,0.7516]
[1730750838340,4.11573,2429.7,2429.3,0.7516]
[1730750840545,4.11595,2429.6,2429.3,0.7516]
[1730750840837,4.11608,2429.5,2429.3,0.7516]
[1730750841036,4.11624,2429.4,2429.3,0.7516]
[1730750841250,4.1165,2429.3,2428.9,0.785]
[1730750841428,4.11658,2429.2,2428.9,3.785]
[1730750841631,4.11658,2429.2,2429.0,0.7782]
[1730750841803,4.11675,2429.1,2429.0,0.7782]
[1730750842008,4.117,2429.0,2428.7,0.7782]
[1730750842748,4.11675,2429.1,2428.7,0.7782]
[1730750843196,4.11627,2429.4,2428.9,4.93436]
[1730750843353,4.11643,2429.3,2428.9,0.8174]
[1730750844035,0.20647362,2429.2,2428.9,0.8174]
[1730750844206,0.20647362,2429.2,2428.9,4.93447]
[1730750844411,4.11643,2429.3,2428.9,4.93447]
[1730750844906,0.20650673,2429.2,2428.9,0.8174]
[1730750845126,4.11643,2429.3,2428.9,0.8174]
[1730750845459,0.20650673,2429.2,2428.9,0.8174]
[1730750845610,0.20650673,2429.2,2428.9,4.93447]
[1730750845943,0.20650673,2429.1,2428.9,4.93447]
[1730750846147,4.11643,2429.3,2428.9,4.93447]
[1730750846354,0.20650673,2429.2,2428.9,4.93447]
[1730750846646,4.11643,2429.3,2428.9,4.93447]
[1730750846808,0.20650071,2429.1,2428.9,0.8174]
[1730750847026,4.11643,2429.3,2428.9,0.8174]
[1730750847366,0.20650071,2429.2,2428.9,0.8174]
[1730750847655,4.11643,2429.3,2428.9,0.8174]
[1730750847859,0.20650071,2429.1,2428.9,0.8174]
[1730750848047,4.11643,2429.3,2428.9,0.8174]
[1730750848253,0.20650071,2429.0,2428.9,0.8174]
[1730750848426,4.11643,2429.3,2428.9,0.8174]
[1730750848960,0.20650071,2429.2,2428.9,0.8174]
[1730750849161,4.11627,2429.4,2428.9,4.93435]